fUSD/lending_fUSD_20260311
["ID","MTS","AMOUNT","RATE_DAILY","PERIOD"]
[408215729,1773246677063,-500.0,0.00047488,120]
[408215730,1773246677072,-500.0,0.00047488,120]
[408215731,1773246677082,-500.0,0.00047488,120]
[408215732,1773246677091,-500.0,0.00047488,120]
[408215733,1773246677104,-500.0,0.00047488,120]
[408215734,1773246677114,-500.0,0.00047488,120]
[408215735,1773246677124,-604.64,0.00047488,120]
[408215736,1773246677134,-604.64,0.00047488,120]
[408215737,1773246677143,-604.64,0.00047488,120]
[408215738,1773246677153,-604.64,0.00047488,120]
[408215739,1773246677162,-604.64,0.00047488,120]
[408215740,1773246677171,-604.64,0.00047488,120]
[408215741,1773246677182,-604.64,0.00047488,120]
[408215742,1773246677192,-604.64,0.00047488,120]
[408215743,1773246677201,-604.64,0.00047488,120]
[408215744,1773246677210,-604.64,0.00047488,120]
[408215745,1773246677220,-604.64,0.00047488,120]
[408215746,1773246677230,-604.64,0.00047488,120]
[408215747,1773246677239,-604.64,0.00047488,120]
[408215748,1773246677248,-604.64,0.00047488,120]
[408215749,1773246677257,-604.64,0.00047488,120]
[408215750,1773246677266,-604.64,0.00047488,120]
[408215751,1773246677276,-604.64,0.00047488,120]
[408215752,1773246677285,-604.64,0.00047488,120]
[408215753,1773246677294,-604.64,0.00047488,120]
[408215754,1773246677303,-604.64,0.00047488,120]
[408215755,1773246677312,-604.64,0.00047488,120]
[408215756,1773246677321,-604.64,0.00047488,120]
[408215757,1773246677330,-604.64,0.00047488,120]
[408215758,1773246677341,-604.77870912,0.00047488,120]
[408215759,1773246677352,-500.0,0.00047488,120]
[408215760,1773246677364,-500.0,0.00047488,120]
[408215761,1773246677374,-500.0,0.00047488,120]
[408215762,1773246677383,-500.0,0.00047488,120]
[408215763,1773246677393,-173.35624932,0.00047488,120]
[408215764,1773246677405,-500.0,0.00047488,120]
[408215765,1773246677415,-493.94610582,0.00047488,120]
[408215766,1773246677424,-500.0,0.00047488,120]
[408215767,1773246677434,-302.05939379,0.00047488,120]
[408215768,1773246677444,-500.0,0.00047488,120]
[408215769,1773246677454,-500.0,0.00047488,120]
[408215770,1773246677464,-500.0,0.00047488,120]
[408215771,1773246677474,-500.0,0.00047488,120]
[408215772,1773246677484,-500.0,0.00047488,120]
[408215773,1773246677494,-500.0,0.00047488,120]
[408215774,1773246677503,-500.0,0.00047488,120]
[408215775,1773246677513,-621.10304962,0.00047488,120]
[408215776,1773246677523,-500.0,0.00047488,2]
[408215777,1773246677532,-500.0,0.00047488,2]
[408215778,1773246677542,-500.0,0.00047488,2]
[408215779,1773246677551,-500.0,0.00047488,2]
[408215780,1773246677561,-500.0,0.00047488,2]
[408215781,1773246677571,-500.0,0.00047488,2]
[408215782,1773246677580,-500.0,0.00047488,2]
[408215783,1773246677590,-500.0,0.00047488,2]
[408215784,1773246677600,-500.0,0.00047488,2]
[408215785,1773246677611,-500.0,0.00047488,2]
[408215786,1773246677621,-632.64913069,0.00047488,2]
[408215787,1773246677631,-500.0,0.00047488,120]
[408215788,1773246677641,-500.0,0.00047488,120]
[408215789,1773246677651,-500.0,0.00047488,120]
[408215790,1773246677661,-500.0,0.00047488,120]
[408215791,1773246677670,-500.0,0.00047488,120]
[408215792,1773246677679,-500.0,0.00047488,120]
[408215793,1773246677689,-500.0,0.00047488,120]
[408215794,1773246677699,-500.0,0.00047488,120]
[408215795,1773246677708,-379.45498099,0.00047488,120]
[408215796,1773246677718,-500.0,0.00047488,120]
[408215797,1773246677729,-500.0,0.00047488,120]
[408215798,1773246677739,-500.0,0.00047488,120]
[408215799,1773246677748,-500.0,0.00047488,120]
[408215800,1773246677758,-500.0,0.00047488,120]
[408215801,1773246677767,-500.0,0.00047488,120]
[408215802,1773246677776,-280.94555151,0.00047488,120]
[408215803,1773246677786,-500.0,0.00047488,120]
[408215804,1773246677795,-500.0,0.00047488,120]
[408215805,1773246677805,-500.0,0.00047488,120]
[408215806,1773246677815,-500.0,0.00047488,120]
[408215807,1773246677825,-500.0,0.00047488,120]
[408215808,1773246677834,-500.0,0.00047488,120]
[408215809,1773246677844,-500.0,0.00047488,120]
[408215810,1773246677854,-500.0,0.00047488,120]
[408215811,1773246677864,-500.0,0.00047488,120]
[408215812,1773246677875,-500.0,0.00047488,120]
[408215813,1773246677885,-500.0,0.00047488,120]
[408215814,1773246677895,-500.0,0.00047488,120]
[408215815,1773246677904,-500.0,0.00047488,120]
[408215816,1773246677914,-500.0,0.00047488,120]
[408215817,1773246677924,-500.0,0.00047488,120]
[408215818,1773246677934,-500.0,0.00047488,120]
[408215819,1773246677944,-500.0,0.00047488,120]
[408215820,1773246677953,-511.05149647,0.00047488,120]
[408215821,1773246677963,-500.0,0.00047488,120]
[408215822,1773246677973,-500.0,0.00047488,120]
[408215823,1773246677983,-500.0,0.00047488,120]
[408215824,1773246677992,-500.0,0.00047488,120]
[408215825,1773246678002,-500.0,0.00047488,120]
[408215826,1773246678011,-500.0,0.00047488,120]
[408215827,1773246678021,-500.0,0.00047488,120]
[408215828,1773246678030,-500.0,0.00047488,120]
[408215829,1773246678039,-500.0,0.00047488,120]
[408215830,1773246678049,-500.0,0.00047488,120]
[408215831,1773246678058,-500.0,0.00047488,120]
[408215832,1773246678067,-168.77115565,0.00047488,120]
[408215833,1773246678077,-500.0,0.00047488,120]
[408215834,1773246678087,-500.0,0.00047488,120]
[408215835,1773246678097,-500.0,0.00047488,120]
[408215836,1773246678106,-500.0,0.00047488,120]
[408215837,1773246678119,-500.0,0.00047488,120]
[408215838,1773246678128,-500.0,0.00047488,120]
[408215839,1773246678138,-500.0,0.00047488,120]
[408215840,1773246678147,-500.0,0.00047488,120]
[408215841,1773246678158,-340.29548299,0.00047488,120]
[408215842,1773246678168,-150.0,0.00047488,2]
[408215843,1773246678177,-500.0,0.00047488,120]
[408215844,1773246678188,-500.0,0.00047488,120]
[408215845,1773246678197,-500.0,0.00047488,120]
[408215846,1773246678207,-500.0,0.00047488,120]
[408215847,1773246678216,-500.0,0.00047488,120]
[408215848,1773246678227,-500.0,0.00047488,120]
[408215849,1773246678236,-500.0,0.00047488,120]
[408215850,1773246678245,-500.0,0.00047488,120]
[408215851,1773246678255,-500.0,0.00047488,120]
[408215852,1773246678264,-500.0,0.00047488,120]
[408215853,1773246678274,-500.0,0.00047488,120]
[408215854,1773246678283,-500.0,0.00047488,120]
[408215855,1773246678292,-500.0,0.00047488,120]
[408215856,1773246678302,-500.0,0.00047488,120]
[408215857,1773246678312,-500.0,0.00047488,120]
[408215858,1773246678321,-500.0,0.00047488,120]
[408215859,1773246678331,-500.0,0.00047488,120]
[408215860,1773246678341,-500.0,0.00047488,120]
[408215861,1773246678350,-500.0,0.00047488,120]
[408215862,1773246678359,-328.63767128,0.00047488,120]
[408215863,1773246678369,-171.66135296,0.00047488,120]
[408215864,1773246678378,-3506.0,0.0004749,2]
[408215865,1773246678388,-3973154.40971391,0.000475,120]
[408215866,1773246678567,-195972.41757743,0.000475,120]
[408215867,1773246678579,-650.29902964,0.000475,120]
[408215868,1773246678632,-500.0,0.0002,2]
[408215869,1773246678641,-3600.0,0.00023279,14]
[408215870,1773246678650,-3154.41849012,0.00023279,14]
[408215871,1773246678661,-445.58150988,0.00023279,14]
[408215872,1773246678671,-260.59849012,0.00023381,2]
[408215873,1773246678682,-3272.80170545,0.00023381,2]
[408215874,1773246678691,-620.0,0.00034801,2]
[408215875,1773246678700,-618.131,0.00037801,2]
[408215876,1773246678709,-1017.1829341,0.000475,120]
[408215877,1773246678722,-77868.27146087,0.000475,120]
[408215878,1773246678734,-838.41957207,0.000475,120]
[408215879,1773246678745,-171033.57726841,0.000475,120]
[408215888,1773247781855,224.0330272,9.746e-05,2]
[408215889,1773247781879,134.9169728,9.746e-05,2]
[408215890,1773247782442,358.95,0.00010259,2]
[408215891,1773247782682,358.95,0.00010772,2]
[408215892,1773247782895,358.95,0.00011285,2]
[408215893,1773247783155,358.95,0.00011798,2]
[408215894,1773247783355,358.95,0.00012311,2]
[408215895,1773247783583,358.95,0.00012824,2]
[408215896,1773247783800,358.95,0.00013337,2]
[408215897,1773247784040,358.95,0.0001385,2]
[408215898,1773247784282,358.95,0.00014363,2]
[408215915,1773247831948,-358.95,0.00014876,2]
[408215916,1773247831958,-358.95,0.00015389,2]
[408215917,1773247831967,-358.95,0.00015902,2]
[408215918,1773247831976,-500.0,0.00016273,2]
[408215919,1773247831985,-2369.41111571,0.00016364,2]
[408215920,1773247832010,-252.01888429,0.00016364,2]
[408215921,1773247832019,-358.95,0.00016415,2]
[408215922,1773247832028,-195.0,0.00016687,2]
[408215923,1773247832038,-106.31481622,0.00016687,2]
[408215924,1773247832054,-88.68518378,0.00016687,2]
[408215925,1773247832064,-195.0,0.00016687,2]
[408215926,1773247832073,-195.0,0.00016687,2]
[408215927,1773247832083,-65.33481622,0.000169,2]
[408215928,1773247832094,-126.11473667,0.000169,2]
[408215929,1773247832103,-358.95,0.00016928,2]
[408215930,1773247832112,-1200.0,0.00016999,2]
[408215931,1773247832122,-504.0,0.00017,2]
[408215932,1773247832133,-358.95,0.00017441,2]
[408215933,1773247832143,-381.016127,0.00017469,7]
[408215934,1773247832152,-300.0,0.00017898,2]
[408215935,1773247832163,-320.40227626,0.000179,2]
[408215936,1773247832172,-320.40227626,0.000179,2]
[408215937,1773247832182,-414.49111115,0.000179,2]
[408215938,1773247832191,-300.36723807,0.000179,2]
[408215939,1773247832201,-195.0,0.000179,2]
[408215940,1773247832211,-2632.9269785,0.000179,2]
[408215941,1773247832221,-600.0,0.000179,2]
[408215942,1773247832232,-356.81305268,0.000179,2]
[408215943,1773247832241,-358.95,0.00017954,2]
[408215944,1773247832251,-2013.0,0.00018222,2]
[408215945,1773247832261,-4567.33339237,0.00018223,2]
[408215947,1773247832271,-320.40227626,0.0001835,2]
[408215949,1773247832280,-194.571013,0.00018388,7]
[408215951,1773247832289,-358.95,0.00018467,2]
[408215953,1773247832297,-358.95,0.0001898,2]
[408215955,1773247832306,-742.84398187,0.0001915,2]
[408215957,1773247832316,-168.0,0.00019356,2]
[408215958,1773247832325,-2686.79,0.00019416,2]
[408215960,1773247832334,-358.95,0.00019493,2]
[408215962,1773247832343,-168.0,0.00019572,2]
[408215964,1773247832353,-500.0,0.00019682,2]
[408215966,1773247832362,-500.53827816,0.00019682,2]
[408215969,1773247832371,-11142.58,0.00019792,2]
[408215971,1773247832381,-150.0,0.00019898,2]
[408215972,1773247832390,-685.0,0.00019984,2]
[408215974,1773247832400,-151.0,0.00019985,2]
[408215975,1773247832410,-151.0,0.00019985,2]
[408215976,1773247832419,-151.0,0.00019985,2]
[408215977,1773247832428,-151.0,0.00019985,2]
[408215978,1773247832438,-151.0,0.00019985,2]
[408215979,1773247832447,-151.0,0.00019985,2]
[408215980,1773247832458,-151.0,0.00019985,2]
[408215981,1773247832467,-151.0,0.00019985,2]
[408215982,1773247832477,-151.0,0.00019985,2]
[408215983,1773247832488,-1945.31421399,0.00019997,2]
[408215984,1773247832497,-500.0,0.00019997,2]
[408215985,1773247832507,-500.0,0.00019997,2]
[408215986,1773247832516,-500.0,0.00019997,2]
[408215987,1773247832525,-500.0,0.00019997,2]
[408215988,1773247832535,-500.0,0.00019997,2]
[408215989,1773247832544,-520.04,0.00019997,2]
[408215990,1773247832554,-500.0,0.00019997,2]
[408215991,1773247832564,-500.0,0.00019997,2]
[408215992,1773247832573,-500.0,0.00019997,2]
[408215993,1773247832582,-500.0,0.00019997,2]
[408215994,1773247832592,-500.0,0.00019997,2]
[408215995,1773247832601,-500.0,0.00019997,2]
[408215996,1773247832611,-500.0,0.00019997,2]
[408215997,1773247832622,-500.0,0.00019997,2]
[408215998,1773247832631,-500.0,0.00019997,2]
[408215999,1773247832641,-37.5805288,0.00019997,2]
[408216000,1773247832669,-462.4194712,0.00019997,2]
[408216001,1773247832678,-333.80551454,0.00019997,2]
[408216002,1773247832687,-531.3103933,0.00019997,2]
[408216003,1773247832697,-500.0,0.00019997,2]
[408216004,1773247832715,-500.0,0.00019997,2]
[408216005,1773247832725,-500.0,0.00019998,2]
[408216006,1773247832734,-191.39028097,0.00019998,2]
[408216007,1773247832744,-500.0,0.00019998,2]
[408216008,1773247832755,-397.97236465,0.00019998,2]
[408216009,1773247832766,-500.0,0.00019998,2]
[408216010,1773247832776,-500.0,0.00019998,2]
[408216011,1773247832786,-500.0,0.00019998,2]
[408216012,1773247832797,-500.0,0.00019998,2]
[408216013,1773247832807,-500.0,0.00019998,2]
[408216014,1773247832816,-506.77106008,0.00019998,2]
[408216015,1773247832826,-500.0,0.00019998,2]
[408216016,1773247832836,-500.0,0.00019998,2]
[408216017,1773247832846,-500.0,0.00019998,2]
[408216018,1773247832855,-174.86,0.0002,2]
[408216019,1773247832865,-504.98137836,0.0002,2]
[408216020,1773247832874,-150.0,0.0002,2]
[408216021,1773247832884,-4694.03274584,0.0002,2]
[408216022,1773247832894,-254.0,0.0002,2]
[408216023,1773247832903,-168.0,0.00020112,2]
[408216024,1773247832913,-504.0,0.0002015,4]
[408216025,1773247832923,-1000.0,0.0002023,2]
[408216026,1773247832933,-430.3563679,0.00020444,2]
[408216027,1773247832942,-971.28357326,0.000205,7]
[408216028,1773247832952,-9496.71246647,0.00020587,2]
[408216029,1773247832962,-500.0,0.00020778,2]
[408216030,1773247832971,-547.09,0.00020951,2]
[408216031,1773247832980,-9999.99,0.00020951,2]
[408216032,1773247832990,-150.99,0.00020951,2]
[408216033,1773247832999,-719.21,0.00020951,2]
[408216034,1773247833009,-2049.82,0.00020951,2]
[408216035,1773247833019,-9999.99,0.00020951,2]
[408216036,1773247833028,-39934.11,0.00020951,2]
[408216037,1773247833038,-999.99,0.00020951,2]
[408216038,1773247833047,-1616.01,0.00020951,2]
[408216039,1773247833056,-1566.67,0.00020951,2]
[408216040,1773247833066,-9999.99,0.00020951,2]
[408216041,1773247833075,-2971.93268574,0.0002172,2]
[408216042,1773247833084,-542.59073283,0.00021756,2]
[408216043,1773247833093,-3651.0,0.00021785,2]
[408216044,1773247833103,-155.67,0.00021918,2]
[408216045,1773247833112,-200.0,0.00022012,2]
[408216046,1773247833123,-5499.29825974,0.00022047,2]
[408216047,1773247833132,-500.0,0.00022173,2]
[408216048,1773247833142,-8650.2342,0.00022174,2]
[408216049,1773247833152,-30000.0,0.00022184,2]
[408216050,1773247833161,-1880.3982467,0.00022213,10]
[408216051,1773247833170,-2000.0,0.000225,2]
[408216052,1773247833180,-2000.0,0.00022586,2]
[408216053,1773247833189,-1342.0,0.00022749,2]
[408216054,1773247833199,-1932.16,0.00022749,2]
[408216055,1773247833208,-1045.057,0.00022749,2]
[408216056,1773247833218,-150.738,0.00022749,2]
[408216057,1773247833227,-2461.0,0.00022749,2]
[408216058,1773247833236,-414.0,0.00022749,2]
[408216059,1773247833245,-504.0,0.000233,7]
[408216060,1773247833255,-155.67,0.00023529,2]
[408216061,1773247833263,-500.0,0.00023612,2]
[408216062,1773247833273,-500.0,0.00023612,2]
[408216063,1773247833282,-500.0,0.00023612,2]
[408216064,1773247833292,-500.0,0.00023612,2]
[408216065,1773247833302,-1236.0,0.00023615,2]
[408216066,1773247833311,-1500.0,0.00023645,2]
[408216067,1773247833321,-2199.95722593,0.00023926,13]
[408216068,1773247833330,-2000.0,0.00024029,2]
[408216069,1773247833339,-502.81664943,0.0002414,2]
[408216070,1773247833349,-1000.0,0.0002416,2]
[408216071,1773247833359,-504.09482637,0.0002416,2]
[408216072,1773247833369,-174.0,0.00024198,2]
[408216073,1773247833378,-150.0,0.00024658,2]
[408216074,1773247833387,-500.0,0.00024708,2]
[408216075,1773247833397,-1336.89,0.00024987,2]
[408216076,1773247833407,-1265.09428998,0.00025093,2]
[408216077,1773247833417,-155.67,0.00025141,2]
[408216078,1773247833426,-462.40634587,0.00025274,2]
[408216079,1773247833436,-2355.14594278,0.00025639,16]
[408216080,1773247833445,-1342.0,0.00025749,2]
[408216081,1773247833455,-1043.0,0.00025749,2]
[408216082,1773247833468,-150.0,0.00025749,2]
[408216083,1773247833478,-2461.0,0.00025749,2]
[408216084,1773247833491,-414.0,0.00025749,2]
[408216085,1773247833501,-150.0,0.0002589,2]
[408216086,1773247833512,-159.89274486,0.00026128,2]
[408216087,1773247833523,-159.89274486,0.00026157,2]
[408216088,1773247833534,-1004.88354371,0.00026298,2]
[408216089,1773247833544,-504.0,0.0002645,10]
[408216090,1773247833555,-155.67,0.00026753,2]
[408216091,1773247833565,-1000.0,0.00026932,2]
[408216092,1773247833575,-2000.0,0.00027032,2]
[408216093,1773247833584,-150.0,0.00027185,2]
[408216094,1773247833594,-2510.33465974,0.00027352,20]
[408216095,1773247833604,-4413.89394266,0.00027397,10]
[408216096,1773247833620,-5793.57605734,0.00027397,10]
[408216097,1773247833629,-8506.22,0.00027397,10]
[408216098,1773247833638,-7088.52,0.00027397,10]
[408216099,1773247833647,-166.66,0.00027507,2]
[408216100,1773247833656,-3457.0,0.00027896,2]
[408216101,1773247833666,-155.67,0.00028364,2]
[408216102,1773247833675,-166.66,0.00028415,2]
[408216103,1773247833685,-3191.8990665,0.00028444,2]
[408216104,1773247833696,-4708.0914335,0.00028444,2]
[408216105,1773247833706,-150.0,0.00028544,2]
[408216106,1773247833715,-1342.0,0.00028749,2]
[408216107,1773247833725,-1043.0,0.00028749,2]
[408216108,1773247833735,-150.0,0.00028749,2]
[408216109,1773247833744,-2461.0,0.00028749,2]
[408216110,1773247833755,-414.0,0.00028749,2]
[408216111,1773247833764,-177.04,0.00028834,2]
[408216112,1773247833774,-501.2232109,0.00029063,2]
[408216113,1773247833783,-500.0,0.00029063,2]
[408216114,1773247833792,-500.0,0.00029063,2]
[408216115,1773247833802,-500.0,0.00029063,2]
[408216116,1773247833812,-500.0,0.00029063,2]
[408216117,1773247833821,-500.0,0.00029063,2]
[408216118,1773247833831,-500.0,0.00029063,2]
[408216119,1773247833840,-500.0,0.00029063,2]
[408216120,1773247833850,-500.0,0.00029063,2]
[408216121,1773247833860,-520.23972239,0.00029063,2]
[408216122,1773247833870,-500.0,0.00029063,2]
[408216123,1773247834111,-500.0,0.00029063,2]
[408216124,1773247834123,-500.0,0.00029063,2]
[408216125,1773247834132,-500.0,0.00029063,2]
[408216126,1773247834142,-500.0,0.00029063,2]
[408216127,1773247834151,-500.0,0.00029063,2]
[408216128,1773247834161,-575.0,0.00029063,2]
[408216129,1773247834173,-500.0,0.00029063,2]
[408216130,1773247834183,-500.0,0.00029063,2]
[408216131,1773247834192,-500.0,0.00029063,2]
[408216132,1773247834201,-500.0,0.00029063,2]
[408216133,1773247834210,-500.0,0.00029063,2]
[408216134,1773247834220,-500.0,0.00029063,2]
[408216135,1773247834230,-500.0,0.00029063,2]
[408216136,1773247834240,-500.0,0.00029063,2]
[408216137,1773247834250,-500.0,0.00029063,2]
[408216138,1773247834259,-500.0,0.00029063,2]
[408216139,1773247834269,-500.0,0.00029063,2]
[408216140,1773247834278,-500.0,0.00029063,2]
[408216141,1773247834288,-500.0,0.00029063,2]
[408216142,1773247834297,-500.0,0.00029063,2]
[408216143,1773247834307,-500.0,0.00029063,2]
[408216144,1773247834316,-500.0,0.00029063,2]
[408216145,1773247834326,-500.0,0.00029063,2]
[408216146,1773247834336,-500.0,0.00029063,2]
[408216147,1773247834345,-500.0,0.00029063,2]
[408216148,1773247834355,-500.0,0.00029063,2]
[408216149,1773247834365,-500.0,0.00029063,2]
[408216150,1773247834374,-500.0,0.00029063,2]
[408216151,1773247834384,-500.0,0.00029063,2]
[408216152,1773247834393,-500.0,0.00029063,2]
[408216153,1773247834402,-500.0,0.00029063,2]
[408216154,1773247834412,-500.0,0.00029063,2]
[408216155,1773247834422,-500.0,0.00029063,2]
[408216156,1773247834431,-500.0,0.00029063,2]
[408216157,1773247834441,-500.0,0.00029063,2]
[408216158,1773247834451,-500.0,0.00029063,2]
[408216159,1773247834460,-500.0,0.00029063,2]
[408216160,1773247834469,-500.0,0.00029063,2]
[408216161,1773247834481,-500.0,0.00029063,2]
[408216162,1773247834490,-500.0,0.00029063,2]
[408216163,1773247834500,-618.00977237,0.00029063,2]
[408216164,1773247834510,-2665.5233767,0.00029065,23]
[408216165,1773247834519,-4972.0,0.00029073,2]
[408216166,1773247834529,-166.66,0.00029323,2]
[408216167,1773247834540,-504.0,0.000296,13]
[408216168,1773247834551,-2598.0,0.00029631,2]
[408216169,1773247834561,-150.0,0.00029971,2]
[408216170,1773247834570,-155.67,0.00029976,2]
[408216171,1773247834579,-985.0,0.00030001,2]
[408216172,1773247834588,-2000.0,0.00030036,2]
[408216173,1773247834598,-166.66,0.00030231,2]
[408216174,1773247834607,-2739.16438105,0.00030778,26]
[408216175,1773247834617,-166.66,0.00031139,2]
[408216176,1773247834627,-150.0,0.0003147,2]
[408216177,1773247834636,-155.67,0.00031588,2]
[408216178,1773247834646,-1342.0,0.00031749,2]
[408216179,1773247834656,-1043.0,0.00031749,2]
[408216180,1773247834666,-150.0,0.00031749,2]
[408216181,1773247834675,-2461.0,0.00031749,2]
[408216182,1773247834685,-414.0,0.00031749,2]
[408216183,1773247834694,-2374.0,0.00031945,5]
[408216184,1773247834703,-1294.42484618,0.00031945,2]
[408216185,1773247834716,-823.641,0.00031945,2]
[408216186,1773247838100,-181.317638,0.00016595,7]
[408216187,1773247838110,-226.647048,0.00019915,7]
[408216188,1773247838120,-157.237314,0.00022541,2]
[408216373,1773247840234,-1243.762686,0.00022541,2]
[408216374,1773247840243,-271.976457,0.00024893,30]
[408216375,1773247840252,-3049.35099942,0.00031945,2]
[408216376,1773247840263,-1159.14107406,0.00031945,2]
[408216377,1773247840393,-197.79208034,0.00031945,2]
[408216378,1773247840402,-658.0,0.00031945,2]
[408216379,1773247840411,-430.3563679,0.00031972,2]
[408216380,1773247840420,-166.66,0.00032046,2]
[408216381,1773247840429,-2789.51292015,0.0003249,29]
[408216382,1773247840438,-8475.0,0.00032615,2]
[408216383,1773247840447,-504.0,0.0003275,16]
[408216384,1773247840456,-500.0,0.00032877,120]
[408216385,1773247840465,-157.0,0.00033,2]
[408216386,1773247840474,-2000.0,0.0003304,2]
[408216387,1773247840485,-150.0,0.00033043,2]
[408216388,1773247840495,-226.647048,0.00033191,60]
[408216389,1773247840504,-155.67,0.00033199,30]
[408216390,1773247840513,-5952.0,0.00034125,2]
[408216391,1773247840523,-2889.61455471,0.00034203,36]
[408216392,1773247840533,-504.63707835,0.00034596,2]
[408216393,1773247840542,-150.0,0.00034696,2]
[408216394,1773247840551,-150.0,0.00034712,30]
[408216395,1773247840562,-1342.0,0.00034749,2]
[408216396,1773247840571,-1043.0,0.00034749,2]
[408216397,1773247840580,-2461.0,0.00034749,2]
[408216398,1773247840590,-414.0,0.00034749,2]
[408216399,1773247840599,-1500.0,0.00034795,2]
[408216400,1773247840608,-155.67,0.00034811,30]
[408216402,1773247840617,-6398.0,0.00034999,2]
[408216404,1773247840627,-504.0,0.000359,19]
[408216406,1773247840636,-3154.76603028,0.00035916,44]
[408216408,1773247840645,-2000.0,0.00036043,2]
[408216409,1773247840654,-504.63707831,0.0003613,2]
[408216410,1773247840663,-4504.44838785,0.00036369,2]
[408216411,1773247840672,-155.67,0.00036422,30]
[408216412,1773247840681,-4475.0,0.00036425,2]
[408216413,1773247840690,-150.0,0.0003643,2]
[408216414,1773247840700,-2874.0,0.00036845,2]
[408216415,1773247840709,-151.26355192,0.000372,120]
[408216416,1773247840719,-2000.0,0.000375,2]
[408216417,1773247840728,-3698.6275936,0.00037629,52]
[408216418,1773247840736,-504.63707831,0.00037664,2]
[408216419,1773247840745,-603.33082425,0.00037749,2]
[408216420,1773247840757,-738.66917575,0.00037749,2]
[408216421,1773247840766,-1043.0,0.00037749,2]
[408216422,1773247840774,-2461.0,0.00037749,2]
[408216423,1773247840783,-414.0,0.00037749,2]
[408216424,1773247840793,-336.77,0.00037785,2]
[408216425,1773247840802,-3215.0,0.00037968,2]
[408216426,1773247840811,-155.67,0.00038034,30]
[408216427,1773247840820,-165.66,0.00038044,14]
[408216428,1773247840830,-171.24,0.00038044,14]
[408216429,1773247840839,-150.0,0.00038252,2]
[408216430,1773247840847,-5907.1,0.00038504,10]
[408216431,1773247840856,-7854.0,0.00038514,2]
[408216432,1773247840866,-150.0,0.00038831,120]
[408216433,1773247840875,-1112.749,0.00038908,53]
[408216434,1773247840884,-4012.07847713,0.00039049,14]
[408216435,1773247840893,-504.0,0.0003905,22]
[408216436,1773247840902,-504.63707831,0.00039197,2]
[408216437,1773247840911,-3764.02141157,0.00039342,60]
[408216438,1773247840920,-2807.0,0.00039495,11]
[408216439,1773247840928,-2222.0,0.00039554,2]
[408216440,1773247840937,-155.67,0.00039646,30]
[408216441,1773247840946,-161.84534965,0.00039776,62]
[408216442,1773247840954,-158.72389636,0.00039781,62]
[408216443,1773247840963,-150.0,0.00040165,2]
[408216444,1773247840972,-3912.0,0.00040705,2]
[408216445,1773247840981,-504.63707831,0.00040731,15]
[408216446,1773247840990,-1342.0,0.00040749,2]
[408216447,1773247840998,-2461.0,0.00040749,2]
[408216448,1773247841009,-414.0,0.00040749,2]
[408216449,1773247841018,-500.97367586,0.000408,5]
[408216450,1773247841027,-21311.0,0.0004095,60]
[408216451,1773247841036,-1000.0,0.00041,2]
[408216452,1773247841045,-4373.27679286,0.00041055,68]
[408216453,1773247841055,-2000.0,0.000412,2]
[408216454,1773247841064,-155.67,0.00041257,30]